Cogmind - Beta 11.1 @@@ ROGUE MODE // 2022.05.05 @ 23:57:42 Player: Decinym Result: Destroyed by 8R-AWN with 8R-AWN's Boregun Performance ------------- Evolutions (1) 500 Regions Visited (5) 1000 Robots Destroyed (38) 190 Value Destroyed (827) 827 Prototype IDs (37) 740 Alien Tech Used (0) 0 Bonus (370) 370 TOTAL SCORE: 3627 Bonus ------- Follower Combat Kills 264 Aligned with FarCom 300 Friendly Fire -194 Cogmind --------- Core Integrity 0/400 Matter 238/300 Energy 85/100 System Corruption 0% Temperature Cool (0) Movement Core (750) Ox14 Location -9/Exiles Parts ------- > --- POWER (1) -------- (None) > --- PROPULSION (2) --- (None) > --- UTILITY (4) ------ Improved Heat Sink High-capacity Storage Unit Utility Shielding > --- WEAPON (2) ------- Mining Claw > --- INVENTORY (20) --- Medium Matter Pod (100) Advanced Visual Processing Unit Targeting Computer Pulse Rifle Beamcaster Light EM Pulse Cannon Light EM Pulse Cannon Rocket Launcher Rocket Launcher Peak State ------------ > --- POWER ------------ Improved Ion Engine > --- PROPULSION ------- Light Treads Light Treads > --- UTILITY ---------- Improved Heat Sink High-capacity Storage Unit Light Armor Plating Shield Generator > --- WEAPON ----------- Pulse Rifle Beamcaster > --- INVENTORY -------- Light Nuclear Core Light Nuclear Core Light Treads Light Treads Medium Matter Pod Advanced Visual Processing Unit Targeting Computer Utility Shielding Shield Generator Light EM Pulse Cannon Light EM Pulse Cannon Assault Rifle Light Assault Rifle Heavy Assault Rifle Rocket Launcher Rocket Launcher Datajack Mining Claw Mining Claw [Rating: 22] Favorites ----------- Power Improved Ion Engine Engine Improved Ion Engine Power Core Light Nuclear Core Propulsion Light Treads Treads Light Treads Leg Aluminum Leg Utility High-capacity Storage Unit Device Improved Heat Sink Storage High-capacity Storage Unit Processor Targeting Computer Protection Light Armor Plating Weapon Pulse Rifle Energy Gun Pulse Rifle Energy Cannon Beam Cannon Ballistic Gun Light Assault Rifle Launcher Rocket Launcher Slashing Weapon Mining Claw Special Melee Weapon Datajack Build | -11 -10 -10 -9 -9 -9 ------- Run | Scr Mat Min Mat Min Exi Slots Evolved 2 | . . . 2 . . Power . | . . . . . . Propulsion . | . . . . . . Utility 2 | . . . 2 . . Weapon . | . . . . . . Parts Attached 41 | . 8 9 3 6 15 Power 6 | . . 2 1 1 2 Engine 3 | . . 1 1 1 . Core 3 | . . 1 . . 2 Reactor . | . . . . . . Propulsion 6 | . 2 1 . 1 2 Treads 6 | . 2 1 . 1 2 Leg . | . . . . . . Wheel . | . . . . . . Hover . | . . . . . . Flight . | . . . . . . Utility 12 | . 5 2 2 1 2 Device 4 | . . 1 1 1 1 Storage 3 | . 3 . . . . Processor 1 | . . 1 . . . Hackware . | . . . . . . Protection 4 | . 2 . 1 . 1 Artifact . | . . . . . . Weapon 17 | . 1 4 . 3 9 Energy Gun 6 | . 1 3 . 2 . Energy Cannon 1 | . . 1 . . . Ballistic Gun 5 | . . . . . 5 Ballistic Cannon . | . . . . . . Launcher 2 | . . . . 1 1 Special Weapon . | . . . . . . Impact Weapon . | . . . . . . Slashing Weapon 2 | . . . . . 2 Piercing Weapon . | . . . . . . Special Melee Weapon 1 | . . . . . 1 Unidentified Prototypes . | . . . . . . Parts Lost 18 | . . 3 . 1 14 Power 4 | . . 1 . . 3 Propulsion 5 | . . . . 1 4 Utility 4 | . . 1 . . 3 Weapon 5 | . . 1 . . 4 Highest Loss Streak 7 | . . 1 . 1 7 To Critical Strikes 7 | . . . . . 7 Average Slot Usage (%) 98 | . 94 99 100 100 98 Engine 9 | . 14 3 11 11 10 Core 2 | . . 10 . . . Treads 22 | . 18 28 22 22 21 Leg 1 | . 9 . . . . Device 15 | . . 8 22 22 21 Storage 12 | . 13 14 11 11 11 Processor 1 | . . 5 . . . Protection 8 | . 9 . 11 11 10 Energy Gun 19 | . 8 24 22 21 14 Ballistic Gun 2 | . 19 . . . 1 Naked Turns . | . . . . . . Heaviest Build 62 | 13 51 52 59 61 62 Greatest Support 40 | 20 40 40 40 40 40 Greatest Overweight (x) 2 | . 2 1 1 1 1 Average Overweight (x) . | . . 1 1 1 1 Largest Inventory Capacity 20 | . 20 20 20 20 20 Average Capacity 19 | . 15 20 20 20 20 Most Carried 20 | . 18 20 20 20 20 Average Carried 18 | . 11 19 19 19 18 Final Capacity 20 | 8 20 20 20 20 20 Final Carried 20 | 6 18 20 20 19 9 Class Distribution -------------------- 62% | Scavenger-Mutant 37% | Mutant Dominant Class ---------------- Mutant | -10/Materials Mutant | -10/Mines Scavenger-Mutant | -9/Materials Scavenger-Mutant | -9/Mines Scavenger-Mutant | -9/Exiles Resources | -11 -10 -10 -9 -9 -9 ----------- Run | Scr Mat Min Mat Min Exi Matter Collected 886 | 200 297 166 30 99 94 Remotely . | . . . . . . Salvage Created 1014 | . 176 287 147 396 8 Parts 56 | . 12 19 7 18 . Haulers Intercepted 1 | . . . 1 . . Recyclers Shooed . | . . . . . . Parts Field Recycled . | . . . . . . Retrieved Matter . | . . . . . . Parts Self-Destructed . | . . . . . . Prevented . | . . . . . . Kills | -11 -10 -10 -9 -9 -9 ------- Run | Scr Mat Min Mat Min Exi Combat Hostiles Destroyed 38 | . 8 11 4 10 5 Guns 28 | . 8 8 4 8 . Cannons 3 | . . 3 . . . AOE 7 | . . . . 2 5 Classes Destroyed 8 | . 2 . 1 4 1 Worker 1 | . . . . 1 . Builder 1 | . . . . 1 . Tunneler 1 | . . . . 1 . Hauler 1 | . . . 1 . . Swarmer 17 | . 6 6 3 2 . Grunt 14 | . 2 5 1 6 . Duelist 2 | . . . . 2 . Assembled 5 | . . . . . 5 Thug 1 | . . . . 1 . Best Kill Streak 5 | . 3 3 3 3 5 Combat Bots Only 5 | . 3 3 3 3 5 Max Kills in Single Turn 2 | . 1 1 1 1 2 Gunslinging . | . . . . . . Exploded 2 | . . . . 1 2 Melee . | . . . . . . Uniques/NPCs Destroyed . | . . . . . . Combat | -11 -10 -10 -9 -9 -9 -------- Run | Scr Mat Min Mat Min Exi Damage Taken 2548 | . 386 445 48 401 1268 Core 558 | . 79 74 . 40 365 Absorbed by Shields 297 | . . . 19 80 198 Redirected to Shielding 37 | . . . . . 37 Regen/Repaired (Parts) 275 | . 275 . . . . Core Remaining (%) 69 | 100 . 38 . . . Volleys Fired 116 | . 39 26 10 26 15 Largest 2 | . 2 2 2 2 2 Hottest 138 | . 70 113 119 138 75 Shots Fired 208 | . 78 46 18 45 21 Gun 188 | . 78 34 18 41 17 Cannon 12 | . . 12 . . . Launcher 8 | . . . . 4 4 Special . | . . . . . . Kinetic 79 | . 65 . . . 14 Thermal 121 | . 13 46 18 41 3 Explosive 8 | . . . . 4 4 Electromagnetic . | . . . . . . Robot Hit Streak 11 | . 5 8 11 9 6 Robot Miss Streak 4 | . 3 4 1 2 2 Penetration Max . | . . . . . . Secondary Targets 3 | . 1 . . 2 . Max Gunslinging Chain 1 | . 1 . . 1 . Shots Hit Robots 157 | . 44 27 13 31 42 Core Hits 76 | . 14 16 7 24 15 Critical Kills . | . . . . . . Critical Parts Destroyed . | . . . . . . Critical Strikes 6 | . 3 1 . 2 . Burn 6 | . 3 1 . 2 . Melee Attacks 43 | . . . . . 43 Impact . | . . . . . . Slashing 39 | . . . . . 39 Piercing . | . . . . . . Sneak Attacks 4 | . . . . . 4 Combat Hostiles . | . . . . . . Follow-up Attacks 6 | . . . . . 6 Damage Inflicted 2864 | . 462 400 202 791 1009 Guns 1625 | . 462 314 202 507 140 Cannons 86 | . . 86 . . . Explosions 529 | . . . . 279 250 Melee 619 | . . . . . 619 Ramming 5 | . . . . 5 . Kinetic 479 | . 339 . . . 140 Thermal 1232 | . 123 400 202 507 . Explosive 529 | . . . . 279 250 Electromagnetic . | . . . . . . Impact . | . . . . . . Slashing 619 | . . . . . 619 Piercing . | . . . . . . Highest Corruption . | . . . . . . Average Corruption . | . . . . . . Corruption Purged . | . . . . . . Corruption Blocked . | . . . . . . Overload Shots . | . . . . . . Overflow Damage 6 | . . . . 6 . Projectiles . | . . . . . . Explosions 6 | . . . . 6 . Melee . | . . . . . . Knockbacks . | . . . . . . Impact . | . . . . . . Kinetic . | . . . . . . Secondary . | . . . . . . Self-Inflicted Damage . | . . . . . . Shots . | . . . . . . Rammed 1 | . . . . 1 . Targets Rammed 1 | . . . . 1 . Kicked . | . . . . . . Crushed . | . . . . . . Highest Temperature 376 | . 249 376 72 52 24 Average Temperature 95 | . 110 146 31 20 14 Received Heat Transfer 284 | . 81 105 . 98 . Effects 3 | . . 3 . . . Interference 2 | . . 2 . . . Matter Decay 1 | . . 1 . . . Siege Activations . | . . . . . . Robots Corrupted . | . . . . . . Combat Hostiles . | . . . . . . Parts Fried . | . . . . . . Impact Corruptions . | . . . . . . Robots Melted . | . . . . . . Combat Hostiles . | . . . . . . Parts Melted 7 | . . 4 1 2 . Heat Transferred 3478 | . 592 1110 481 1295 . Parts Sabotaged . | . . . . . . Parts Stolen . | . . . . . . Parts Stripped . | . . . . . . Power Chain Reactions . | . . . . . . Missiles Intercepted . | . . . . . . Alert | -11 -10 -10 -9 -9 -9 ------- Run | Scr Mat Min Mat Min Exi Peak Influence 271 | . 200 145 261 271 . Initial 43 | . . 39 . 43 . Average 75 | . 101 46 72 87 . Maximum Alert Level 1 | . 1 . 1 1 . Low Security (%) 91 | . 74 100 94 91 . Level 1 8 | . 25 . 5 8 . Level 2 . | . . . . . . Level 3 . | . . . . . . Level 4 . | . . . . . . Level 5 . | . . . . . . High Security . | . . . . . . Max Security . | . . . . . . Squads Dispatched 4 | . . 1 2 1 . Investigation 1 | . . 1 . . . Extermination . | . . . . . . Reinforcement 2 | . . . 2 . . Assault 1 | . . . . 1 . Garrison . | . . . . . . Intercept . | . . . . . . Searches Triggered . | . . . . . . Construction Impeded . | . . . . . . Haulers Reinforced . | . . . . . . Active Scanning Responses . | . . . . . . Cargo Convoy Interrupts . | . . . . . . Stealth | -11 -10 -10 -9 -9 -9 --------- Run | Scr Mat Min Mat Min Exi Distress Signals 4 | . 1 . 3 . . Communications Jammed . | . . . . . . Distress Signals . | . . . . . . Times Spotted 68 | . 18 13 13 17 7 Peak Tracking Total 9 | . 6 3 5 4 9 Tactical Retreats 3 | . 2 . . 1 . Traps | -11 -10 -10 -9 -9 -9 ------- Run | Scr Mat Min Mat Min Exi Traps Triggered . | . . . . . . Indirectly . | . . . . . . Trap Hack Attempts . | . . . . . . Triggered . | . . . . . . Disarmed . | . . . . . . Reprogrammed . | . . . . . . Reused . | . . . . . . Traps Extracted . | . . . . . . Installed . | . . . . . . Triggered . | . . . . . . Exploded 3 | . . . . . 3 Machines | -11 -10 -10 -9 -9 -9 ---------- Run | Scr Mat Min Mat Min Exi Machines Disabled 5 | . . 1 1 . 3 Max in Single Turn 1 | . . 1 1 . 1 Machines Sabotaged . | . . . . . . Garrisons Compromised . | . . . . . . Overloaded Fab Kills . | . . . . . . Hacking | -11 -10 -10 -9 -9 -9 --------- Run | Scr Mat Min Mat Min Exi Machines Accessed 9 | . 4 1 2 . 2 Terminals 5 | . 3 . 2 . . Fabricators . | . . . . . . Repair Stations 1 | . 1 . . . . Recycling Units . | . . . . . . Scanalyzers . | . . . . . . Garrison Access . | . . . . . . Total Hacks 22 | . 12 1 7 . 2 Successful 14 | . 8 1 3 . 2 Failed 8 | . 4 . 4 . . Catastrophic 2 | . 1 . 1 . . Database Lockouts . | . . . . . . Manual 16 | . 8 . 7 . 1 Terminals 15 | . 8 . 7 . . Fabricators . | . . . . . . Repair Stations 4 | . 4 . . . . Recycling Units . | . . . . . . Scanalyzers . | . . . . . . Garrison Access . | . . . . . . Terminal Hacks 9 | . 4 1 2 . 2 Record 1 | . . . . . 1 Part Schematic 2 | . 2 . . . . Open Door 1 | . . 1 . . . Branch Access Points 3 | . 2 . 1 . . Unreport Threat 1 | . . . 1 . . EX-Prototype ID Bank 1 | . . . . . 1 Fabricator Hacks . | . . . . . . Repair Station Hacks 4 | . 4 . . . . Scan Component 2 | . 2 . . . . Repair 2 | . 2 . . . . Recycling Unit Hacks . | . . . . . . Scanalyzer . | . . . . . . Garrison Access Hacks . | . . . . . . Unauthorized Hacks 1 | . . . 1 . . Terminals 1 | . . . 1 . . Botnet 1 | . . . 1 . . Fabricators . | . . . . . . Repair Stations . | . . . . . . Recycling Units . | . . . . . . Scanalyzers . | . . . . . . Garrison Access . | . . . . . . Data Cores Recovered . | . . . . . . Used . | . . . . . . Hacking Detections 5 | . 3 . 2 . . Full Trace Events . | . . . . . . Feedback Events . | . . . . . . Feedback Blocked . | . . . . . . Robot Schematics Acquired . | . . . . . . Robots Built . | . . . . . . Authchips . | . . . . . . Time . | . . . . . . Total Robot Build Rating . | . . . . . . Part Schematics Acquired 2 | . 2 . . . . Parts Built . | . . . . . . Authchips . | . . . . . . Time . | . . . . . . Total Part Build Rating . | . . . . . . Parts Repaired 2 | . 2 . . . . Time 52 | . 52 . . . . Parts Recycled . | . . . . . . Recycled Matter . | . . . . . . Retrieved Matter . | . . . . . . Retrieved Components . | . . . . . . Parts Scanalyzed . | . . . . . . Part Schematics Acquired . | . . . . . . Parts Damaged . | . . . . . . Bothacking | -11 -10 -10 -9 -9 -9 ------------ Run | Scr Mat Min Mat Min Exi Used RIF Installer . | . . . . . . Robots Hacked 4 | . . . . . 4 Non-combat 3 | . . . . . 3 Combat 1 | . . . . . 1 Robot Hacks Applied 4 | . . . . . 4 parse_system 4 | . . . . . 4 Relay Couplers Released . | . . . . . . Fabnet Peak Effective % . | . . . . . . Robots Rewired . | . . . . . . Allies Hacked . | . . . . . . Hacks Repelled . | . . . . . . Allies | -11 -10 -10 -9 -9 -9 -------- Run | Scr Mat Min Mat Min Exi Total Allies 5 | . . 1 . 4 . Largest Group 3 | . . 1 1 3 3 Highest-Rated Group 40 | . . 31 31 40 40 Highest-Rated Ally 31 | . . 31 31 31 16 Total Orders 4 | . . . . . 4 STAY 3 | . . . . . 3 FOLLOW 1 | . . . . . 1 Ally Attacks 45 | . . 1 18 18 8 Total Damage 550 | . . 21 275 248 6 Kills 10 | . . 1 4 5 . Allies Corrupted . | . . . . . . Allies Melted . | . . . . . . Intel | -11 -10 -10 -9 -9 -9 ------- Run | Scr Mat Min Mat Min Exi Robot Analysis Total . | . . . . . . Derelict Logs Recovered 4 | . . 2 . 2 . Drone Launches . | . . . . . . Drone Recoveries . | . . . . . . Exploration | -11 -10 -10 -9 -9 -9 ------------- Run | Scr Mat Min Mat Min Exi Turns Passed 6415 | . 750 1614 209 2141 1701 Spaces Moved 2458 | 1 287 618 72 857 623 Core . | . . . . . . Treads 2330 | . 160 618 72 857 623 Legs 128 | 1 127 . . . . Wheels . | . . . . . . Hover . | . . . . . . Flight . | . . . . . . Fastest Speed 120 | 120 120 240 240 240 240 Average Speed 234 | 120 190 240 240 240 240 Slowest Speed 260 | 120 260 240 240 240 240 Overloaded Moves . | . . . . . . Propulsion Burnouts . | . . . . . . Robots Hopped . | . . . . . . Cave-ins Triggered . | . . . . . . Exploration Rate (%) 54 | 2 49 92 15 99 68 Regions Visited 5 Branch Regions 3 Pre-discovered Areas 3 | . . . . 2 1 Known Exits Taken 3 | . 1 . 1 1 . Unknown Exits Taken 2 | 1 . 1 . . . Scrap Searched 3 | . . 2 . 1 . Spaces Dug . | . . . . . . Terrain Destroyed 56 | . . . . 37 19 Melee . | . . . . . . Projectile . | . . . . . . AOE 56 | . . . . 37 19 Terrain Rammed . | . . . . . . Walls Destroyed . | . . . . . . Machines Disabled . | . . . . . . Actions | -11 -10 -10 -9 -9 -9 --------- Run | Scr Mat Min Mat Min Exi Total 2854 | . 421 707 92 895 739 Wait 129 | . 59 30 2 4 34 Move 2453 | . 286 617 71 856 623 Hop . | . . . . . . Pick Up 49 | . 25 13 4 . 7 Fast Attach 9 | . 4 3 . 2 . Attach 15 | . . 2 2 1 10 Detach . | . . . . . . Swap 17 | . 4 4 1 3 5 Drop 28 | . 4 12 2 2 8 Fire 116 | . 39 26 10 26 15 Melee 37 | . . . . . 37 Ram . | . . . . . . Kick . | . . . . . . Crush 1 | . . . . 1 . Escape Stasis . | . . . . . . Rewire . | . . . . . . Trap . | . . . . . . Miscellaneous . | . . . . . . Route ------- -11/Scrapyard -10/Materials -10/Mines (discovered 2 exits: *Mat x2) -9/Materials (discovered 2 exits: *Min / Sto) -9/Mines (discovered 4 exits: [*Mat x2] / *Exi / [*Zio]) -9/Exiles (discovered 1 exit: [*Min]) History --------- Turn | Location | Event 1 | -11/Scrapyard | Discovered new exit (range 0) 1 | -11/Scrapyard | Entered Materials 35 | -10/Materials | Identified exit to Mines 314 | -10/Materials | Build established: Mutant 577 | -10/Materials | Repaired Lgt. Armor Plating 605 | -10/Materials | Repaired Hcp. Storage Unit 751 | -10/Materials | Entered Mines 769 | -10/Mines | Met a Derelict bent on vengeance 896 | -10/Mines | Core integrity fell below 50% 1139 | -10/Mines | Met a Derelict shopkeep closing up shop 1439 | -10/Mines | Escorted by a lone wolf Derelict 1682 | -10/Mines | Learned Materials terminal intel 2009 | -10/Mines | Discovered new exit (range 6) 2251 | -10/Mines | Discovered new exit (range 16) 2297 | -10/Mines | Joined a pair of Derelicts in attacking an 0b10 outpost 2365 | -10/Mines | Entered Materials 2365 | -9/Materials | Accompanied by 1 ally 2365 | -9/Materials | Evolved 2 slots: Utility x2 2366 | -9/Materials | Loaded intel: 12 terminal locations 2457 | -9/Materials | Identified exit to Mines 2457 | -9/Materials | Identified exit to Storage 2574 | -9/Materials | Entered Mines 2574 | -9/Mines | Accompanied by 1 ally 2581 | -9/Mines | Received a Rocket Launcher from a helpful Derelict 2597 | -9/Mines | Build established: Scavenger-Mutant 2710 | -9/Mines | Learned location of Storage (-9) 2882 | -9/Mines | Learned location of Zion (-7) 3164 | -9/Mines | Identified exit to Exiles 3184 | -9/Mines | Assembled infested the area 3405 | -9/Mines | A Derelict revealed a hidden shortcut to a safe place 3409 | -9/Mines | Discovered new exit (range 14) 3622 | -9/Mines | Met a Derelict testing a Signal Generator 3897 | -9/Mines | Deemed a non-threat by the Exiles lab entrance 3974 | -9/Mines | Discovered new exit (range 6) 4365 | -9/Mines | Assisted by bots powering up and referring to "LRC-V3" 4715 | -9/Mines | Entered Exiles 4715 | -9/Exiles | Accompanied by 3 allies 4751 | -9/Exiles | Discovered new exit (range 15) 4780 | -9/Exiles | Met 8R-AWN 4814 | -9/Exiles | Met EX-HEX 4895 | -9/Exiles | Met EX-BIN 4922 | -9/Exiles | Aligned with FarCom system 4924 | -9/Exiles | Given EX-Vault access code 4979 | -9/Exiles | Opened EX-Vault 5037 | -9/Exiles | Warned to stay clear of 0b10 Research branches 5121 | -9/Exiles | Met EX-DEC 6165 | -9/Exiles | Attacked by the Exiles 6323 | -9/Exiles | Core integrity fell below 50% 6330 | -9/Exiles | Lost 7 parts (2p1n2u2w) 6413 | -9/Exiles | Core integrity fell below 20% 6416 | -9/Exiles | Destroyed by 8R-AWN with 8R-AWN's Boregun Last Messages --------------- 06353_ Destroyed 8R-AWN's Armor/TH. 06356_ Penetrated by HV Slug. 06359_ Mining Claw follow-up attack on 8R-AWN. 06361_ Penetrated by HV Slug. 06363_ Mining Claw follow-up attack on 8R-AWN. 06365_ Penetrated by HV Slug. 06369_ Lgt. Treads destroyed. 06373_ Penetrated by HV Slug. 06382_ HV Slug penetrates Wall. 06386_ Penetrated by HV Slug. 06386_ Critical hit (Destroy). 06386_ Lgt. Treads destroyed. 06390_ Penetrated by HV Slug. 06390_ Shield Generator destroyed. 06390_ Penetrated by HV Slug. 06395_ Mining Claw destroyed. 06399_ Penetrated by HV Slug. 06403_ Critical hit (Destroy). 06403_ Assault Rifle destroyed. 06403_ Penetrated by HV Slug. Map ----- +----------------------------------------------------+ | ?????????????????????????????????????????????????? | | ?????????????????????????????????????????????????? | | ?????????????????????????????????????????????????? | | ?????????????????????????????????????????????????? | | ?????????????????????????????????????????????????? | | ?????????????????????????????????????????????????? | | ?????????????????????????????????????????????????? | | ?????????????????????????????????????????????????? | | ?????????????????????????????????????????????????? | | ?????????????????????????????????????????????????? | | ?????????????????????????????????????????????????? | | ?????????????????????????????????????????????????? | | ?????????????????????????????????????????????????? | | ?????????????????????????????????????????????????? | | ?????????????????????????????????????????????????? | | ?????????????????????????????????????????????????? | | ?????????????????????????????????????????????????? | | ????????????? ???????????????????????????????????? | | ???????????? ??????????????#######?????????????? | | ???????????? ######???????#! ! "#?????????????? | | ???????????? #""#??????# "#?????????????? | | ???????????# ??????# "#?????????????? | | ????????????#" ##???## ""#????????????## | | ????????????"" ;####" "#???????????? | | ??????????????# g ##" ""#????????????" | | ???????????????# @ #"" ###????????????" | | ?????????????????## #?????????????"" | | ??????????????????#### ##????????????"" | | ?????????????????????### [*= "# #####?????? | | ??????????????######### =%% # #???????" | | ??????????????#" !! !!* #??????# | | ???????????????#! [%="###" # ##???### | | ???????????????# !"#?##" ###X# | | ???????????????#! !##??#" | | ?????????????# " !" "" "#;#???#"# | | ?????????????############ #???#### | | ????????????????????????# #??????### | | ????????????????????????# #????????#" | | ????????????????????????# #??????????# | | ????????????????????????# #??????????? | | ????????????????????????# #????????????## | | ????????????????????????? ??????????????#"" | | ????????????????????????? ?????????????##" | | ????????????????????????? ?????????????#"" | | ????????????????????????? ????????????##""" | | ????????????????????????? ????????????#""" | | ????????????????????????? ????????????#""" | | ?????????????????????????#????????????#"" | | ??????????????????????????????????????#""" | | ??????????????????????????????????????#"" | +----------------------------------------------------+ Best States ------------- Heat Dissipation 42 Energy Generation 14 Energy Capacity 265 Matter Stores 300 Matter Capacity 300 Sight Range 16 Terrain Scan Density 10 Armor Coverage 150 Utility Shielding 33 Evasion (%) 55 Targeting Accuracy 5 Recoil Reduction 2 Item Schematics ----------------- Huge Storage Unit | -10/Materials | Hacked Hcp. Storage Unit | -10/Materials | Hacked Robot Schematics ------------------ None Fabricated ------------ Nothing Alien Tech Used ----------------- None Achievements -------------- None Challenges ------------ None Game ------ Seed MassOmegaCompressor Manual? 0 Play Time 00:22:05 Cumulative 329.1 hours Start 2022.05.05 @ 23:36:29 End 2022.05.05 @ 23:57:42 Sessions 1 Manual Loads 0 Difficulty Rogue Special Mode None Game No. 365 Rogue 365 Adventurer 0 Explorer 0 Win Type - Total 28 Types 17/3/2/1/2/0/3/0/0 Lore% 86 Gallery% 84 Achievement% 80 Wizard Run 0 Options --------- ASCII 0 Keyboard 0 Movement Arrows Keybinds 0 Fullscreen 2 Font 18/SmallcapsGlow Map View 76x50 Tactical HUD 1 Map Filters NONE Filters NONE Steam 1 RUN: 7d3fb9a3-2fdc-40a9-993e-be6d5846cfa0